Workbook

Sheet List1
A3: Obec , IČ: Náklo, 00299251
A5: Rozpočtové opatření č. 12 - ŘÍJEN 2022
A7: V souladu s ustanovením § 16 zákona č. 250/2000 Sb., o rozpočtových pravidlech územních rozpočtů dojde k rozpočtovému
A8: opatření v případě změn rozpočtových prostředků na závazných ukazatelích.
A10: Rozpočtové opatření č. 12/2022 (předloženo na Radě obce 31. 10. 2022) a doplněno při jednání na zasedání Rady obce
A12: PŘÍJMY
A13: PAR | B13: POL | C13: UZ | D13: PARAGRAF | E13: popis | F13: Rozpočet na rok 2022 | G13: Rozpočet po změnách | H13: změna ROZP | I13: ROZP po ZMĚNĚ | J13: POZNÁMKA
D14: Celkem ZMĚNY v PŘÍJMECH | F14: 33700619.7 | G14: 35858640.73 | I14: =H14+G14 -> 35858640.73
D16: Celkem PŘÍJMY | F16: =F14 -> 33700619.7 | G16: =G14 -> 35858640.73 | H16: =H14 -> 0 | I16: =G16+H16 -> 35858640.73
A18: VÝDAJE:
A19: PAR | B19: POL | C19: UZ | D19: PARAGRAF | E19: popis | F19: Rozpočet na rok 2022 | G19: Rozpočet po změnách | H19: změna ROZP | I19: ROZP po ZMĚNĚ | J19: POZNÁMKA
A20: 3612 | B20: 5151 | E20: Studená voda | F20: 5000 | G20: 32477.55 | H20: 26000 | I20: =H20+G20 -> 58477.55 | J20: studená voda byty
A21: 3612 | D21: Bytové hospodářství | F21: 210000 | G21: 2937048.39 | H21: =H20 -> 26000 | I21: 2963048.39
A22: 3613 | B22: 5171 | E22: opravy a udržování | F22: 20000 | G22: 20000 | H22: 4000 | I22: =H22+G22 -> 24000 | J22: oprava N12 - střecha
A23: 3613 | D23: Nebytové hospodářství | F23: 51000 | G23: 115798.62 | H23: =H22 -> 4000 | I23: 119798.62
A24: 3631 | B24: 5169 | E24: nákup ostatních služeb | F24: 10000 | G24: 83821.46 | H24: 33529.13 | I24: =H24+G24 -> 117350.59 | J24: nájemní smlouva ČEZ
A25: 3631 | B25: 5171 | E25: opravy a udržování | F25: 50000 | G25: 50000 | H25: 42000 | I25: =H25+G25 -> 92000 | J25: výměna lamp ČEZ
A26: 3631 | D26: Veřejné osvětlení | F26: 300000 | G26: 447695.14 | H26: =SUM(H24:H25) -> 75529.13 | I26: 523224.27
A27: 3632 | B27: 5169 | E27: elektrická energie | F27: 6500 | G27: 15750 | H27: 5760.37 | I27: =H27+G27 -> 21510.37 | J27: elektrická energie hřbitov
A28: 3632 | D28: Pohřebnictví | F28: 300000 | G28: 447695.14 | H28: =SUM(H27:H27) -> 5760.37 | I28: =H28+G28 -> 453455.51
A29: 3725 | B29: 5169 | E29: nákup ostatních služeb | F29: 300000 | G29: 380000 | H29: 30000 | I29: =H29+G29 -> 410000 | J29: komunální odpad
A30: 3725 | D30: Využívání a zneškodňování komunálního odpadu | F30: 423000 | G30: 503000 | H30: =SUM(H29:H29) -> 30000 | I30: =H30+G30 -> 533000
A31: 6171 | B31: 5151 | E31: Studená voda | F31: 6000 | G31: 8580 | H31: 1430 | I31: =H31+G31 -> 10010 | J31: studená voda OÚ
A32: 6171 | B32: 5137 | E32: Drobný dlouhodobý hmotný dlouhodobý | F32: 30000 | G32: 108871 | H32: 100000 | I32: =H32+G32 -> 208871 | J32: notebook, mobilní telefon
A33: 6171 | B33: 5162 | E33: Služby elektronických komunikací | F33: 80000 | G33: 80000 | H33: 20000 | I33: =H33++G33 -> 100000 | J33: telefonní poplatky
A34: 6171 | B34: 5321 | E34: Neinvestiční transfery obcím | F34: 60000 | G34: 75000 | H34: =25000+8242 -> 33242 | I34: =H34+G34 -> 108242 | J34: Městská policie Štěpánov
A35: 6171 | B35: 6121 | E35: Stavby | F35: 0 | G35: 2000000 | H35: =-175529.13-30000-21430-33242-5760.37-30000 -> -295961.5 | I35: =H35+G35 -> 1704038.5
A36: 6171 | D36: Činnost místní správy | F36: 5427999 | G36: 9934378.31 | H36: =SUM(H31:H35) -> -141289.5 | I36: =H36+G36 -> 9793088.81
D37: Celkem ZMĚNY ve VÝDAJÍCH | F37: 30616619.7 | G37: 41730236.51 | H37: =+H36+H26+H23+H21+H28+H30 -> 0 | I37: =H37+G37 -> 41730236.51
D39: Celkem VÝDAJE | F39: 41730236.51 | G39: 0 | H39: =F39 -> 41730236.51
D41: Celkem 5XXX | F41: 26880442.95 | G41: 519277 | H41: 27399719.95
D42: Celkem 6XXX | F42: 12687107.25 | G42: 1488726.17 | H42: 14175833.42
A45: FINANCOVÁNÍ
A46: PAR | B46: POL | C46: UZ | D46: PARAGRAF | E46: popis | F46: Rozpočet na rok 2022 | G46: Rozpočet po změnách | H46: změna ROZP | I46: ROZP po ZMĚNĚ | J46: POZNÁMKA
D49: Celkem ZMĚNY ve FINANCOVÁNÍ: | I49: =I47 -> 0
D52: REKAPITULACE:
D54: Celkem PŘÍJMY | F54: 38021327.04 | G54: 0 | H54: =F54 -> 38021327.04
D55: Celkem FINANCOVÁNÍ: | F55: 3708909.47 | G55: 0 | H55: =F55 -> 3708909.47
D56: Celkem PŘÍJMY+FINANCOVÁNÍ | F56: =F55+F54 -> 41730236.51 | G56: 0 | H56: 41730236.51
D58: Celkem VÝDAJE | F58: =F56 -> 41730236.51 | G58: 0 | H58: 41730236.51
A61: Důvodová zpráva k rozpočtovému opatření č. 12/2022
A63: Přesun prostředků v rámci nezajištěného výdaje je Čerpán z rezervy obce.
A65: Správce rozpočtu :
A67: Starosta obce :
A69: Rada obce schvaluje dne 31. 10. 2022 rozpočtové opatření č. 12/2022 v předloženém rozsahu.

Sheet List2
A1: TEXTY PRO FORMULÁŘ ÚPRAVA ROZPOČTU - na začátek kopírují se řádky 3-13
A2: poznámka: Texty, které budou přenášeny z tohoto formuláře, musí být zapsány pouze ve sloupci A
A5: Obec , IČ: Náklo, 00299251
A7: Rozpočtové změny roku 2019 -duben
A9: V souladu s ustanovením § 16 zákona č. 250/2000 Sb., o rozpočtových pravidlech územních rozpočtů dojde k rozpočtovému
A10: opatření v případě změn rozpočtových prostředků na závazných ukazatelích.
A12: Rozpočtové opatření č. 1/2019 (předloženo na ZQ 6. 6. 2018) a doplněno při jednání na ZO
A14: TEXTY PRO FORMULÁŘ ÚPRAVA ROZPOČTU - na začátek kopírují se řádky 16-32
A16: Důvodová zpráva k rozpočtovému opatření č. 1/2019
A18: Přesun prostředků v rámci nezajištěného výdaje je Čerpán z rezervy obce.
A20: Správce rozpočtu :
A22: Starosta obce :
A24: ZO schvaluje dne 6. 6. 2018 rozpočtové opatření č. 3/2018 v předloženém rozsahu Usnesením č. 1038/1860

Sheet List3
